Workbook

Sheet DocumentationPage
B2: Documentation Page
B3: Listing | C3: Description | D3: Comments
B5: Cover Letter | C5: Introductory letter from Records Management Division | D5: Click to open
B7: General Instructions | C7: General instructions for doing the holdings report | D7: Click to open
B9: Step-by-step procedure | C9: Specific instructions for the entering the data | D9: Click to open
B11: Departments/Divisions | C11: Double-click on division to get to specific spreadsheet | D11: These are listed in alphabetical order
C12: Records Manager - Pennye Neal: Phone 741-5739
B14: Agency Summary
B15: Accounts
B16: Administration
B17: Administration_ISM
B18: Billing_Services
B19: Budget
B20: Capital_Projects_Management
B21: Executive
B22: Finance & Administration
B23: Human_Resource_Office
B24: Insurance_Administration
B25: Internal_Audit
B26: Legal
B27: Office_of_Business_and_Finance
B28: OIR - Administration
B29: OIR - SDS
B30: OIR - Telecom
B31: OIR - TSS
B32: OIR/PRD
B33: OIR/Quality Assurance
B34: OIR-Computer Operations
B35: Real_Property_Management
B36: Resource Development & Support
B37: OIR - PMC
B38: OSTS
B39: Health Planning
B40: Shared Services
B41: State Planning
B42: ERP
B43: OIG

Sheet CoverLetter

Sheet GeneralInstructions

Sheet StepbyStep...

Sheet Agency Summary
A5: DEPARTMENT OF GENERAL SERVICES
A6: RECORDS MANAGEMENT DIVISION
A8: RECORDS HOLDING REPORT
A9: FY July 1, 2011 through June 30, 2012
A11: SEE INSTRUCTIONS ON BACK
B13: Department Name: | D13: Finance & Administration | I13: Allotment Code: | K13: 317
B15: Division Name: | D15: All Divisions | I15: County: | J15: Davidson
B17: Person Completing Form: | E17: Tami Jefferson | I17: Phone: | J17: 615-253-4052
B19: Paper Record(s) Holdings
B20: I. Records on Hand July 1, 2011 | G20: (beginning volume from previous year) | K20: =SUM(RDS:ERP!K20) -> 11026 | L20: Cu. Ft.
B22: II. Records Created | J22: (+) | K22: =SUM(RDS:ERP!K22) -> 429 | L22: Cu. Ft.
B24: III. Records Destroyed | J24: ( - ) | K24: =SUM(RDS:ERP!K24) -> 2841 | L24: Cu. Ft.
B26: IV. Records Transferred:
D27: Records Center | J27: ( - ) | K27: =SUM(RDS:ERP!K27) -> 0 | L27: Cu. Ft.
D28: Library & Archives | J28: ( - ) | K28: =SUM(RDS:ERP!K28) -> 0 | L28: Cu. Ft.
D29: Other: (please specify) ______________________________ | J29: ( - ) | K29: =SUM(RDS:ERP!K29) -> 0 | L29: Cu. Ft.
B31: V. Records on hand June 30, 2012 | H31: (Line I + II – III – IV = V) | K31: =SUM(K20+K22-K24-K27-K28-K29) -> 8614 | L31: Cu. Ft. | M31: =K31-K20 -> -2412 | N31: Difference Between this year and last year
M32: =M31/K20 -> -0.2187556684 | N32: Percentage: | O32: =IF(M32>0, "Positive", "Negative") -> Negative
B33: Records Category/Description: | M33: >10% | N33: =OR(M32>10%,M32<-10%) -> TRUE
B34: Media: | F34: Active | G34: + | H34: Inactive | K34: Totals
B36: I. Paper | F36: =SUM(RDS:ERP!F36) -> 8614 | H36: =SUM(RDS:ERP!H36) -> 0 | K36: =F36+H36 -> 8614 | L36: Cu. Ft
B38: II Cartridge & Magnetic Tapes | F38: =SUM(RDS:ERP!F38) -> 0 | H38: =SUM(RDS:ERP!H38) -> 0 | K38: =F38+H38 -> 0 | L38: Cart/Reel
B40: III. CD ROM | F40: =SUM(RDS:ERP!F40) -> 264 | H40: =SUM(RDS:ERP!H40) -> 0 | K40: =F40+H40 -> 264 | L40: Disks
B42: IV. Magnetic/Optical Disks | F42: =SUM(RDS:ERP!F42) -> 0 | H42: =SUM(RDS:ERP!H42) -> 0 | K42: =F42+H42 -> 0 | L42: Disks
B44: V. Microfilm | F44: =SUM(RDS:ERP!F44) -> 0 | H44: =SUM(RDS:ERP!H44) -> 0 | K44: =F44+H44 -> 0 | L44: Rolls
B46: VI. Microfiche | F46: =SUM(RDS:ERP!F46) -> 0 | H46: =SUM(RDS:ERP!H46) -> 0 | K46: =F46+H46 -> 0 | L46: Sheets
B48: Microfilm – Number of Rolls Produced Annually:
B50: I. | C50: By Reporting Agency | K50: =SUM(RDS:ERP!K50) -> 0
B52: II. | C52: By Other State Agencies | K52: =SUM(RDS:ERP!K52) -> 0
B54: III. | C54: By Outside Vendors | K54: =SUM(RDS:ERP!K54) -> 0
D56: Total Rolls Produced | K56: =K50+K52+K54 -> 0
B58: Storage Facilities
B59: Does your division store records in storage facilities other than the office or State Records Center?
L60: No
B61: If YES, please provide the following information:
D64: Name and Address | I64: Media Type | K64: Volume
B69: GS-0704 (REV 08/12) | K69: RDA SW05

Sheet RDS
A5: DEPARTMENT OF GENERAL SERVICES
A6: RECORDS MANAGEMENT DIVISION
A8: RECORDS HOLDING REPORT
A9: FY July 1, 2011 through June 30, 2012
A11: SEE INSTRUCTIONS ON BACK
B13: Department Name: | D13: Finance & Administration | I13: Allotment Code: | K13: 317.06, 317.07, 317.11
B15: Division Name: | D15: Resource Development & Support | I15: County: | J15: Davidson
B17: Person Completing Form: | E17: Francine Webster | I17: Phone: | J17: 6155327187
B19: Paper Record(s) Holdings
B20: I. Records on Hand July 1, 2011 | G20: (beginning volume from previous year) | K20: 265 | L20: Cu. Ft.
B22: II. Records Created | J22: (+) | L22: Cu. Ft.
B24: III. Records Destroyed | J24: ( - ) | K24: 138 | L24: Cu. Ft.
B26: IV. Records Transferred:
D27: Records Center | J27: ( - ) | L27: Cu. Ft.
D28: Library & Archives | J28: ( - )
D29: Other: (please specify) ______________________________ | J29: ( - ) | L29: Cu. Ft.
B31: V. Records on hand June 30, 2012 | H31: (Line I + II – III – IV = V) | K31: =SUM(K20+K22-K24-K27-K28-K29) -> 127 | L31: Cu. Ft.
B33: Records Category/Description:
B34: Media: | F34: Active | G34: + | H34: Inactive | K34: Totals
B36: I. Paper | F36: =K31-H36 -> 127 | K36: =K31 -> 127 | L36: Cu. Ft
B38: II Cartridge & Magnetic Tapes | K38: =F38+H38 -> 0 | L38: Cart/Reel
B40: III. CD ROM | K40: =F40+H40 -> 0 | L40: Disks
B42: IV. Magnetic/Optical Disks | K42: =F42+H42 -> 0 | L42: Disks
B44: V. Microfilm | K44: =F44+H44 -> 0 | L44: Rolls
B46: VI. Microfiche | K46: =F46+H46 -> 0 | L46: Sheets
B48: Microfilm – Number of Rolls Produced Annually:
B50: I. | C50: By Reporting Agency
B52: II. | C52: By Other State Agencies
B54: III. | C54: By Outside Vendors
D56: Total Rolls Produced | K56: =K50+K52+K54 -> 0
B58: Storage Facilities
B59: Does your division store records in storage facilities other than the office or State Records Center?
J60: Yes | K60: X | L60: No
B61: If YES, please provide the following information:
D64: Name and Address | I64: Media Type | K64: Volume
B69: GS-0704 (REV 08/12) | K69: RDA SW05

Sheet OIR-TELECOM
A5: DEPARTMENT OF GENERAL SERVICES
A6: RECORDS MANAGEMENT DIVISION
A8: RECORDS HOLDING REPORT
A9: FY July 1, 2011 through June 30, 2012
A11: SEE INSTRUCTIONS ON BACK
B13: Department Name: | D13: Finance & Administration | I13: Allotment Code: | K13: 317.03
B15: Division Name: | D15: OIR - Telecom | I15: County: | J15: Davidson
B17: Person Completing Form: | E17: Pam Walker | I17: Phone: | J17: 6152535049
B19: Paper Record(s) Holdings
B20: I. Records on Hand July 1, 2011 | G20: (beginning volume from previous year) | K20: 54 | L20: Cu. Ft.
B22: II. Records Created | J22: (+) | L22: Cu. Ft.
B24: III. Records Destroyed | J24: ( - ) | L24: Cu. Ft.
B26: IV. Records Transferred:
D27: Records Center | J27: ( - ) | L27: Cu. Ft.
D28: Library & Archives | J28: ( - ) | L28: Cu. Ft.
D29: Other: (please specify) ______________________________ | J29: ( - ) | L29: Cu. Ft.
B31: V. Records on hand June 30, 2012 | H31: (Line I + II – III – IV = V) | K31: =SUM(K20+K22-K24-K27-K28-K29) -> 54 | L31: Cu. Ft.
B33: Records Category/Description:
B34: Media: | F34: Active | G34: + | H34: Inactive | J34: = | K34: Totals
B36: I. Paper | F36: =K31-H36 -> 54 | K36: =K31 -> 54 | L36: Cu. Ft
B38: II Cartridge & Magnetic Tapes | K38: =F38+H38 -> 0 | L38: Cart/Reel
B40: III. CD ROM | K40: =F40+H40 -> 0 | L40: Disks
B42: IV. Magnetic/Optical Disks | K42: =F42+H42 -> 0 | L42: Disks
B44: V. Microfilm | K44: =F44+H44 -> 0 | L44: Rolls
B46: VI. Microfiche | K46: =F46+H46 -> 0 | L46: Sheets
B48: Microfilm – Number of Rolls Produced Annually:
B50: I. | C50: By Reporting Agency
B52: II. | C52: By Other State Agencies
B54: III. | C54: By Outside Vendors
D56: Total Rolls Produced | K56: =K50+K52+K54 -> 0
B58: Storage Facilities
B59: Does your division store records in storage facilities other than the office or State Records Center?
J60: Yes | L60: No
B61: If YES, please provide the following information:
D64: Name and Address | I64: Media Type | K64: Volume
B69: GS-0704 (REV 08/12) | K69: RDA SW05

Sheet OIR-TSS
A5: DEPARTMENT OF GENERAL SERVICES
A6: RECORDS MANAGEMENT DIVISION
A8: RECORDS HOLDING REPORT
A9: FY July 1, 2011 through June 30, 2012
A11: SEE INSTRUCTIONS ON BACK
B13: Department Name: | D13: Finance & Administration | I13: Allotment Code: | K13: 317.03
B15: Division Name: | D15: OIR - MTS | I15: County: | J15: Davidson
B17: Person Completing Form: | E17: Pam Walker | I17: Phone: | J17: 6152535049
B19: Paper Record(s) Holdings
B20: I. Records on Hand July 1, 2011 | G20: (beginning volume from previous year) | K20: 450 | L20: Cu. Ft.
B22: II. Records Created | J22: (+) | L22: Cu. Ft.
B24: III. Records Destroyed | J24: ( - ) | L24: Cu. Ft.
B26: IV. Records Transferred:
D27: Records Center | J27: ( - ) | L27: Cu. Ft.
D28: Library & Archives | J28: ( - ) | L28: Cu. Ft.
D29: Other: (please specify) ______________________________ | J29: ( - ) | L29: Cu. Ft.
B31: V. Records on hand June 30, 2012 | H31: (Line I + II – III – IV = V) | K31: =SUM(K20+K22-K24-K27-K28-K29) -> 450 | L31: Cu. Ft.
B33: Records Category/Description:
B34: Media: | F34: Active | G34: + | H34: Inactive | J34: = | K34: Totals
B36: I. Paper | F36: =K31-H36 -> 450 | K36: =K31 -> 450 | L36: Cu. Ft
B38: II Cartridge & Magnetic Tapes | K38: =F38+H38 -> 0 | L38: Cart/Reel
B40: III. CD ROM | K40: =F40+H40 -> 0 | L40: Disks
B42: IV. Magnetic/Optical Disks | K42: =F42+H42 -> 0 | L42: Disks
B44: V. Microfilm | K44: =F44+H44 -> 0 | L44: Rolls
B46: VI. Microfiche | K46: =F46+H46 -> 0 | L46: Sheets
B48: Microfilm – Number of Rolls Produced Annually:
B50: I. | C50: By Reporting Agency
B52: II. | C52: By Other State Agencies
B54: III. | C54: By Outside Vendors
D56: Total Rolls Produced | K56: =K50+K52+K54 -> 0
B58: Storage Facilities
B59: Does your division store records in storage facilities other than the office or State Records Center?
J60: Yes | L60: No
B61: If YES, please provide the following information:
D64: Name and Address | I64: Media Type | K64: Volume
B69: GS-0704 (REV 08/12) | K69: RDA SW05

Sheet OIR-SDS
A5: DEPARTMENT OF GENERAL SERVICES
A6: RECORDS MANAGEMENT DIVISION
A8: RECORDS HOLDING REPORT
A9: FY July 1, 2011 through June 30, 2012
A11: SEE INSTRUCTIONS ON BACK
B13: Department Name: | D13: Finance & Administration | I13: Allotment Code: | K13: 317.03
B15: Division Name: | D15: OIR - SDS | I15: County: | J15: Davidson
B17: Person Completing Form: | E17: Jeanne Smith | I17: Phone: | J17: 6155323486
B19: Paper Record(s) Holdings
B20: I. Records on Hand July 1, 2011 | G20: (beginning volume from previous year) | K20: 2101 | L20: Cu. Ft.
B22: II. Records Created | J22: (+) | K22: 1 | L22: Cu. Ft.
B24: III. Records Destroyed | J24: ( - ) | K24: 2000 | L24: Cu. Ft.
B26: IV. Records Transferred:
D27: Records Center | J27: ( - ) | L27: Cu. Ft.
D28: Library & Archives | J28: ( - ) | L28: Cu. Ft.
D29: Other: (please specify) ______________________________ | J29: ( - ) | L29: Cu. Ft.
B31: V. Records on hand June 30, 2012 | H31: (Line I + II – III – IV = V) | K31: =SUM(K20+K22-K24-K27-K28-K29) -> 102 | L31: Cu. Ft.
B33: Records Category/Description:
B34: Media: | F34: Active | G34: + | H34: Inactive | J34: = | K34: Totals
B36: I. Paper | F36: =K31-H36 -> 102 | K36: =K31 -> 102 | L36: Cu. Ft
B38: II Cartridge & Magnetic Tapes | K38: =F38+H38 -> 0 | L38: Cart/Reel
B40: III. CD ROM | K40: =F40+H40 -> 0 | L40: Disks
B42: IV. Magnetic/Optical Disks | K42: =F42+H42 -> 0 | L42: Disks
B44: V. Microfilm | K44: =F44+H44 -> 0 | L44: Rolls
B46: VI. Microfiche | K46: =F46+H46 -> 0 | L46: Sheets
B48: Microfilm – Number of Rolls Produced Annually:
B50: I. | C50: By Reporting Agency
B52: II. | C52: By Other State Agencies
B54: III. | C54: By Outside Vendors
D56: Total Rolls Produced | K56: =K50+K52+K54 -> 0
B58: Storage Facilities
B59: Does your division store records in storage facilities other than the office or State Records Center?
J60: Yes | K60: X | L60: No
B61: If YES, please provide the following information:
D64: Name and Address | I64: Media Type | K64: Volume
B69: GS-0704 (REV 08/12) | K69: RDA SW05

Sheet OIR-OPER
A5: DEPARTMENT OF GENERAL SERVICES
A6: RECORDS MANAGEMENT DIVISION
A8: RECORDS HOLDING REPORT
A9: FY July 1, 2011 through June 30, 2012
A11: SEE INSTRUCTIONS ON BACK
B13: Department Name: ______________________________________________ | D13: Department of Finance and Administration | I13: Allotment Code: | K13: 317.03
B15: Division Name: ______________________________________________ | D15: OIR-Computer Operations | I15: County: | J15: Davidson
B17: Person Completing Form: ___________________________________ | E17: Sarah Monk | I17: Phone: | J17: 6157413700
B19: Paper Record(s) Holdings
B20: I. Records on Hand July 1, 2011 | G20: (beginning volume from previous year) | K20: 118 | L20: Cu. Ft.
B22: II. Records Created | J22: (+) | L22: Cu. Ft.
B24: III. Records Destroyed | J24: ( - ) | L24: Cu. Ft.
B26: IV. Records Transferred:
D27: Records Center | J27: ( - ) | L27: Cu. Ft.
D28: Library & Archives | J28: ( - ) | L28: Cu. Ft.
D29: Other: (please specify) ______________________________ | J29: ( - ) | L29: Cu. Ft.
B31: V. Records on hand June 30, 2012 | H31: (Line I + II – III – IV = V) | K31: =SUM(K20+K22-K24-K27-K28-K29) -> 118 | L31: Cu. Ft.
B33: Records Category/Description:
B34: Media: | F34: Active | G34: + | H34: Inactive | J34: = | K34: Totals
B36: I. Paper | F36: =K31-H36 -> 118 | K36: =K31 -> 118 | L36: Cu. Ft
B38: II Cartridge & Magnetic Tapes | K38: =F38+H38 -> 0 | L38: Cart/Reel
B40: III. CD ROM | K40: =F40+H40 -> 0 | L40: Disks
B42: IV. Magnetic/Optical Disks | K42: =F42+H42 -> 0 | L42: Disks
B44: V. Microfilm | K44: =F44+H44 -> 0 | L44: Rolls
B46: VI. Microfiche | K46: =F46+H46 -> 0 | L46: Sheets
B48: Microfilm – Number of Rolls Produced Annually:
B50: I. | C50: By Reporting Agency
B52: II. | C52: By Other State Agencies
B54: III. | C54: By Outside Vendors
D56: Total Rolls Produced | K56: =K50+K52+K54 -> 0
B58: Storage Facilities
B59: Does your division store records in storage facilities other than the office or State Records Center?
J60: Yes | L60: No
B61: If YES, please provide the following information:
D64: Name and Address | I64: Media Type | K64: Volume
B69: GS-0704 (REV 08/12) | K69: RDA SW05

Sheet OIR-QA
A5: DEPARTMENT OF GENERAL SERVICES
A6: RECORDS MANAGEMENT DIVISION
A8: RECORDS HOLDING REPORT
A9: FY July 1, 2011 through June 30, 2012
A11: SEE INSTRUCTIONS ON BACK
B13: Department Name: ______________________________________________ | D13: Finance & Administration | I13: Allotment Code: | K13: 317.03
B15: Division Name: ______________________________________________ | D15: OIR/Quality Assurance | I15: County: | J15: Davidson
B17: Person Completing Form: ___________________________________ | E17: Margaret Latch | I17: Phone: | J17: 6152537842
B19: Paper Record(s) Holdings
B20: I. Records on Hand July 1, 2011 | G20: (beginning volume from previous year) | K20: 87 | L20: Cu. Ft.
B22: II. Records Created | J22: (+) | L22: Cu. Ft.
B24: III. Records Destroyed | J24: ( - ) | L24: Cu. Ft.
B26: IV. Records Transferred:
D27: Records Center | J27: ( - ) | L27: Cu. Ft.
D28: Library & Archives | J28: ( - ) | L28: Cu. Ft.
D29: Other: (please specify) ______________________________ | J29: ( - ) | L29: Cu. Ft.
B31: V. Records on hand June 30, 2012 | H31: (Line I + II – III – IV = V) | K31: =SUM(K20+K22-K24-K27-K28-K29) -> 87 | L31: Cu. Ft.
B33: Records Category/Description:
B34: Media: | F34: Active | G34: + | H34: Inactive | J34: = | K34: Totals
B36: I. Paper | F36: =K31-H36 -> 87 | K36: =K31 -> 87 | L36: Cu. Ft
B38: II Cartridge & Magnetic Tapes | K38: =F38+H38 -> 0 | L38: Cart/Reel
B40: III. CD ROM | K40: =F40+H40 -> 0 | L40: Disks
B42: IV. Magnetic/Optical Disks | K42: =F42+H42 -> 0 | L42: Disks
B44: V. Microfilm | K44: =F44+H44 -> 0 | L44: Rolls
B46: VI. Microfiche | K46: =F46+H46 -> 0 | L46: Sheets
B48: Microfilm – Number of Rolls Produced Annually:
B50: I. | C50: By Reporting Agency
B52: II. | C52: By Other State Agencies
B54: III. | C54: By Outside Vendors
D56: Total Rolls Produced | K56: =K50+K52+K54 -> 0
B58: Storage Facilities
B59: Does your division store records in storage facilities other than the office or State Records Center?
J60: Yes | L60: No
B61: If YES, please provide the following information:
D64: Name and Address | I64: Media Type | K64: Volume
B69: GS-0704 (REV 08/12) | K69: RDA SW05

Sheet OIR-PRD
A5: DEPARTMENT OF GENERAL SERVICES
A6: RECORDS MANAGEMENT DIVISION
A8: RECORDS HOLDING REPORT
A9: FY July 1, 2011 through June 30, 2012
A11: SEE INSTRUCTIONS ON BACK
B13: Department Name: ______________________________________________ | D13: Finance & Administration | I13: Allotment Code: | K13: 317.03
B15: Division Name: ______________________________________________ | D15: OIR/PRD | I15: County: | J15: Davidson
B17: Person Completing Form: ___________________________________ | E17: Margaret Latch | I17: Phone: | J17: 6152537842
B19: Paper Record(s) Holdings
B20: I. Records on Hand July 1, 2011 | G20: (beginning volume from previous year) | K20: 150 | L20: Cu. Ft.
B22: II. Records Created | J22: (+) | L22: Cu. Ft.
B24: III. Records Destroyed | J24: ( - ) | L24: Cu. Ft.
B26: IV. Records Transferred:
D27: Records Center | J27: ( - ) | L27: Cu. Ft.
D28: Library & Archives | J28: ( - ) | L28: Cu. Ft.
D29: Other: (please specify) ______________________________ | J29: ( - ) | L29: Cu. Ft.
B31: V. Records on hand June 30, 2012 | H31: (Line I + II – III – IV = V) | K31: =SUM(K20+K22-K24-K27-K28-K29) -> 150 | L31: Cu. Ft.
B33: Records Category/Description:
B34: Media: | F34: Active | G34: + | H34: Inactive | J34: = | K34: Totals
B36: I. Paper | F36: =K31-H36 -> 150 | K36: =K31 -> 150 | L36: Cu. Ft
B38: II Cartridge & Magnetic Tapes | K38: =F38+H38 -> 0 | L38: Cart/Reel
B40: III. CD ROM | K40: =F40+H40 -> 0 | L40: Disks
B42: IV. Magnetic/Optical Disks | K42: =F42+H42 -> 0 | L42: Disks
B44: V. Microfilm | K44: =F44+H44 -> 0 | L44: Rolls
B46: VI. Microfiche | K46: =F46+H46 -> 0 | L46: Sheets
B48: Microfilm – Number of Rolls Produced Annually:
B50: I. | C50: By Reporting Agency
B52: II. | C52: By Other State Agencies
B54: III. | C54: By Outside Vendors
D56: Total Rolls Produced | K56: =K50+K52+K54 -> 0
B58: Storage Facilities
B59: Does your division store records in storage facilities other than the office or State Records Center?
J60: Yes | L60: No
B61: If YES, please provide the following information:
D64: Name and Address | I64: Media Type | K64: Volume
B69: GS-0704 (REV 08/12) | K69: RDA SW05

Sheet OIR-DBA
A5: DEPARTMENT OF GENERAL SERVICES
A6: RECORDS MANAGEMENT DIVISION
A8: RECORDS HOLDING REPORT
A9: FY July 1, 2011 through June 30, 2012
A11: SEE INSTRUCTIONS ON BACK
B13: Department Name: ______________________________________________ | D13: Finance & Administration | I13: Allotment Code: | K13: 317.03
B15: Division Name: ______________________________________________ | D15: OIR Soultions Delivery & Support | I15: County: | J15: Davidson
B17: Person Completing Form: ___________________________________ | E17: Margie Latch | I17: Phone: | J17: 6152537842
B19: Paper Record(s) Holdings
B20: I. Records on Hand July 1, 2011 | G20: (beginning volume from previous year) | K20: 13 | L20: Cu. Ft.
B22: II. Records Created | J22: (+) | L22: Cu. Ft.
B24: III. Records Destroyed | J24: ( - ) | L24: Cu. Ft.
B26: IV. Records Transferred:
D27: Records Center | J27: ( - ) | L27: Cu. Ft.
D28: Library & Archives | J28: ( - ) | L28: Cu. Ft.
D29: Other: (please specify) ______________________________ | J29: ( - ) | L29: Cu. Ft.
B31: V. Records on hand June 30, 2012 | H31: (Line I + II – III – IV = V) | K31: =SUM(K20+K22-K24-K27-K28-K29) -> 13 | L31: Cu. Ft.
B33: Records Category/Description:
B34: Media: | F34: Active | G34: + | H34: Inactive | J34: = | K34: Totals
B36: I. Paper | F36: =K31-H36 -> 13 | K36: =K31 -> 13 | L36: Cu. Ft
B38: II Cartridge & Magnetic Tapes | K38: =F38+H38 -> 0 | L38: Cart/Reel
B40: III. CD ROM | K40: =F40+H40 -> 0 | L40: Disks
B42: IV. Magnetic/Optical Disks | K42: =F42+H42 -> 0 | L42: Disks
B44: V. Microfilm | K44: =F44+H44 -> 0 | L44: Rolls
B46: VI. Microfiche | K46: =F46+H46 -> 0 | L46: Sheets
B48: Microfilm – Number of Rolls Produced Annually:
B50: I. | C50: By Reporting Agency
B52: II. | C52: By Other State Agencies
B54: III. | C54: By Outside Vendors
D56: Total Rolls Produced | K56: =K50+K52+K54 -> 0
B58: Storage Facilities
B59: Does your division store records in storage facilities other than the office or State Records Center?
J60: Yes | L60: No
B61: If YES, please provide the following information:
D64: Name and Address | I64: Media Type | K64: Volume
B69: GS-0704 (REV 08/12) | K69: RDA SW05

Sheet OIR-CS
A5: DEPARTMENT OF GENERAL SERVICES
A6: RECORDS MANAGEMENT DIVISION
A8: RECORDS HOLDING REPORT
A9: FY July 1, 2011 through June 30, 2012
A11: SEE INSTRUCTIONS ON BACK
B13: Department Name: | D13: Finance & Administration | I13: Allotment Code: | K13: 317.03
B15: Division Name: | D15: OIR - CS | I15: County: | J15: Davidson
B17: Person Completing Form: | E17: Margie Latch | I17: Phone: | J17: 615-253-7842
B19: Paper Record(s) Holdings
B20: I. Records on Hand July 1, 2011 | G20: (beginning volume from previous year) | K20: 67 | L20: Cu. Ft.
B22: II. Records Created | J22: (+) | L22: Cu. Ft.
B24: III. Records Destroyed | J24: ( - ) | L24: Cu. Ft.
B26: IV. Records Transferred:
D27: Records Center | J27: ( - ) | L27: Cu. Ft.
D28: Library & Archives | J28: ( - ) | L28: Cu. Ft.
D29: Other: (please specify) ______________________________ | J29: ( - ) | L29: Cu. Ft.
B31: V. Records on hand June 30, 2012 | H31: (Line I + II – III – IV = V) | K31: =SUM(K20+K22-K24-K27-K28-K29) -> 67 | L31: Cu. Ft.
B33: Records Category/Description:
B34: Media: | F34: Active | G34: + | H34: Inactive | J34: = | K34: Totals
B36: I. Paper | F36: =K31-H36 -> 67 | K36: =K31 -> 67 | L36: Cu. Ft
B38: II Cartridge & Magnetic Tapes | K38: =F38+H38 -> 0 | L38: Cart/Reel
B40: III. CD ROM | K40: =F40+H40 -> 0 | L40: Disks
B42: IV. Magnetic/Optical Disks | K42: =F42+H42 -> 0 | L42: Disks
B44: V. Microfilm | K44: =F44+H44 -> 0 | L44: Rolls
B46: VI. Microfiche | K46: =F46+H46 -> 0 | L46: Sheets
B48: Microfilm – Number of Rolls Produced Annually:
B50: I. | C50: By Reporting Agency
B52: II. | C52: By Other State Agencies
B54: III. | C54: By Outside Vendors
D56: Total Rolls Produced | K56: =K50+K52+K54 -> 0
B58: Storage Facilities
B59: Does your division store records in storage facilities other than the office or State Records Center?
J60: Yes | L60: No
B61: If YES, please provide the following information:
D64: Name and Address | I64: Media Type | K64: Volume
B69: GS-0704 (REV 08/12) | K69: RDA SW05

Sheet OIR-Admin
A5: DEPARTMENT OF GENERAL SERVICES
A6: RECORDS MANAGEMENT DIVISION
A8: RECORDS HOLDING REPORT
A9: FY July 1, 2011 through June 30, 2012
A11: SEE INSTRUCTIONS ON BACK
B13: Department Name: | D13: Finance & Administration | I13: Allotment Code: | K13: 317.03
B15: Division Name: | D15: OIR - Administration | I15: County: | J15: Davidson
B17: Person Completing Form: | E17: Sarah Monk | I17: Phone: | J17: 6157413700
B19: Paper Record(s) Holdings
B20: I. Records on Hand July 1, 2011 | G20: (beginning volume from previous year) | K20: 8 | L20: Cu. Ft.
B22: II. Records Created | J22: (+) | L22: Cu. Ft.
B24: III. Records Destroyed | J24: ( - ) | L24: Cu. Ft.
B26: IV. Records Transferred:
D27: Records Center | J27: ( - ) | L27: Cu. Ft.
D28: Library & Archives | J28: ( - ) | L28: Cu. Ft.
D29: Other: (please specify) ______________________________ | J29: ( - ) | L29: Cu. Ft.
B31: V. Records on hand June 30, 2012 | H31: (Line I + II – III – IV = V) | K31: =SUM(K20+K22-K24-K27-K28-K29) -> 8 | L31: Cu. Ft.
B33: Records Category/Description:
B34: Media: | F34: Active | G34: + | H34: Inactive | J34: = | K34: Totals
B36: I. Paper | F36: =K31-H36 -> 8 | K36: =K31 -> 8 | L36: Cu. Ft
B38: II Cartridge & Magnetic Tapes | K38: =F38+H38 -> 0 | L38: Cart/Reel
B40: III. CD ROM | K40: =F40+H40 -> 0 | L40: Disks
B42: IV. Magnetic/Optical Disks | K42: =F42+H42 -> 0 | L42: Disks
B44: V. Microfilm | K44: =F44+H44 -> 0 | L44: Rolls
B46: VI. Microfiche | K46: =F46+H46 -> 0 | L46: Sheets
B48: Microfilm – Number of Rolls Produced Annually:
B50: I. | C50: By Reporting Agency
B52: II. | C52: By Other State Agencies
B54: III. | C54: By Outside Vendors
D56: Total Rolls Produced | K56: =K50+K52+K54 -> 0
B58: Storage Facilities
B59: Does your division store records in storage facilities other than the office or State Records Center?
J60: Yes | L60: No
B61: If YES, please provide the following information:
D64: Name and Address | I64: Media Type | K64: Volume
B69: GS-0704 (REV 08/12) | K69: RDA SW05

Sheet Insurance
A5: DEPARTMENT OF GENERAL SERVICES
A6: RECORDS MANAGEMENT DIVISION
A8: RECORDS HOLDING REPORT
A9: FY July 1, 2011 through June 30, 2012
A11: SEE INSTRUCTIONS ON BACK
B13: Department Name: ______________________________________________ | D13: Finance and Administration | I13: Allotment Code: | K13: 317.04
B15: Division Name: ______________________________________________ | D15: Insurance Administration | I15: County: | J15: Davidson
B17: Person Completing Form: ___________________________________ | E17: Valerie Payne | I17: Phone: | J17: 615/741-4517
B19: Paper Record(s) Holdings
B20: I. Records on Hand July 1, 2011 | G20: (beginning volume from previous year) | K20: 1380 | L20: Cu. Ft.
B22: II. Records Created | J22: (+) | K22: 0 | L22: Cu. Ft.
B24: III. Records Destroyed | J24: ( - ) | K24: 0 | L24: Cu. Ft.
B26: IV. Records Transferred:
D27: Records Center | J27: ( - ) | K27: 0 | L27: Cu. Ft.
D28: Library & Archives | J28: ( - ) | K28: 0 | L28: Cu. Ft.
D29: Other: (please specify) ______________________________ | J29: ( - ) | K29: 0 | L29: Cu. Ft.
B31: V. Records on hand June 30, 2012 | H31: (Line I + II – III – IV = V) | K31: =SUM(K20+K22-K24-K27-K28-K29) -> 1380 | L31: Cu. Ft.
B33: Records Category/Description:
B34: Media: | F34: Active | G34: + | H34: Inactive | J34: = | K34: Totals
B36: I. Paper | F36: =K31-H36 -> 1380 | K36: =K31 -> 1380 | L36: Cu. Ft
B38: II Cartridge & Magnetic Tapes | K38: =F38+H38 -> 0 | L38: Cart/Reel
B40: III. CD ROM | K40: =F40+H40 -> 0 | L40: Disks
B42: IV. Magnetic/Optical Disks | K42: =F42+H42 -> 0 | L42: Disks
B44: V. Microfilm | K44: =F44+H44 -> 0 | L44: Rolls
B46: VI. Microfiche | K46: =F46+H46 -> 0 | L46: Sheets
B48: Microfilm – Number of Rolls Produced Annually:
B50: I. | C50: By Reporting Agency
B52: II. | C52: By Other State Agencies
B54: III. | C54: By Outside Vendors
D56: Total Rolls Produced | K56: =K50+K52+K54 -> 0
B58: Storage Facilities
B59: Does your division store records in storage facilities other than the office or State Records Center?
J60: Yes | K60: X | L60: No
B61: If YES, please provide the following information:
D64: Name and Address | I64: Media Type | K64: Volume
B69: GS-0704 (REV 08/12) | K69: RDA SW05

Sheet LEGAL
A5: DEPARTMENT OF GENERAL SERVICES
A6: RECORDS MANAGEMENT DIVISION
A8: RECORDS HOLDING REPORT
A9: FY July 1, 2011 through June 30, 2012
A11: SEE INSTRUCTIONS ON BACK
B13: Department Name: | D13: Finance & Administration | I13: Allotment Code: | K13: 317.01
B15: Division Name: | D15: Legal | I15: County: | J15: Davidson
B17: Person Completing Form: | E17: April Mayambu | I17: Phone: | J17: 6157410320
B19: Paper Record(s) Holdings
B20: I. Records on Hand July 1, 2011 | G20: (beginning volume from previous year) | K20: 58 | L20: Cu. Ft.
B22: II. Records Created | J22: (+) | L22: Cu. Ft.
B24: III. Records Destroyed | J24: ( - ) | L24: Cu. Ft.
B26: IV. Records Transferred:
D27: Records Center | J27: ( - ) | L27: Cu. Ft.
D28: Library & Archives | J28: ( - ) | L28: Cu. Ft.
D29: Other: (please specify) ______________________________ | J29: ( - ) | L29: Cu. Ft.
B31: V. Records on hand June 30, 2012 | H31: (Line I + II – III – IV = V) | K31: =SUM(K20+K22-K24-K27-K28-K29) -> 58 | L31: Cu. Ft.
B33: Records Category/Description:
B34: Media: | F34: Active | G34: + | H34: Inactive | J34: = | K34: Totals
B36: I. Paper | F36: =K31-H36 -> 58 | K36: =K31 -> 58 | L36: Cu. Ft
B38: II Cartridge & Magnetic Tapes | K38: =F38+H38 -> 0 | L38: Cart/Reel
B40: III. CD ROM | K40: =F40+H40 -> 0 | L40: Disks
B42: IV. Magnetic/Optical Disks | K42: =F42+H42 -> 0 | L42: Disks
B44: V. Microfilm | K44: =F44+H44 -> 0 | L44: Rolls
B46: VI. Microfiche | K46: =F46+H46 -> 0 | L46: Sheets
B48: Microfilm – Number of Rolls Produced Annually:
B50: I. | C50: By Reporting Agency
B52: II. | C52: By Other State Agencies
B54: III. | C54: By Outside Vendors
D56: Total Rolls Produced | K56: =K50+K52+K54 -> 0
B58: Storage Facilities
B59: Does your division store records in storage facilities other than the office or State Records Center?
J60: Yes | L60: No
B61: If YES, please provide the following information:
D64: Name and Address | I64: Media Type | K64: Volume
B69: GS-0704 (REV 08/12) | K69: RDA SW05

Sheet EXEC
A5: DEPARTMENT OF GENERAL SERVICES
A6: RECORDS MANAGEMENT DIVISION
A8: RECORDS HOLDING REPORT
A9: FY July 1, 2011 through June 30, 2012
A11: SEE INSTRUCTIONS ON BACK
B13: Department Name: | D13: Finance and Administration | I13: Allotment Code: | K13: 317.01
B15: Division Name: | D15: Executive | I15: County: | J15: Davidson
B17: Person Completing Form: | E17: Kimberly Birdwell | I17: Phone: | J17: 615-741-2401
B19: Paper Record(s) Holdings
B20: I. Records on Hand July 1, 2011 | G20: (beginning volume from previous year) | K20: 4 | L20: Cu. Ft.
B22: II. Records Created | J22: (+) | L22: Cu. Ft.
B24: III. Records Destroyed | J24: ( - ) | L24: Cu. Ft.
B26: IV. Records Transferred:
D27: Records Center | J27: ( - ) | L27: Cu. Ft.
D28: Library & Archives | J28: ( - ) | L28: Cu. Ft.
D29: Other: (please specify) ______________________________ | J29: ( - ) | L29: Cu. Ft.
B31: V. Records on hand June 30, 2012 | H31: (Line I + II – III – IV = V) | K31: =SUM(K20+K22-K24-K27-K28-K29) -> 4 | L31: Cu. Ft.
B33: Records Category/Description:
B34: Media: | F34: Active | G34: + | H34: Inactive | J34: = | K34: Totals
B36: I. Paper | F36: =K31-H36 -> 4 | K36: =K31 -> 4 | L36: Cu. Ft
B38: II Cartridge & Magnetic Tapes | K38: =F38+H38 -> 0 | L38: Cart/Reel
B40: III. CD ROM | K40: =F40+H40 -> 0 | L40: Disks
B42: IV. Magnetic/Optical Disks | K42: =F42+H42 -> 0 | L42: Disks
B44: V. Microfilm | K44: =F44+H44 -> 0 | L44: Rolls
B46: VI. Microfiche | K46: =F46+H46 -> 0 | L46: Sheets
B48: Microfilm – Number of Rolls Produced Annually:
B50: I. | C50: By Reporting Agency
B52: II. | C52: By Other State Agencies
B54: III. | C54: By Outside Vendors
D56: Total Rolls Produced | K56: =K50+K52+K54 -> 0
B58: Storage Facilities
B59: Does your division store records in storage facilities other than the office or State Records Center?
J60: Yes | K60: X | L60: No
B61: If YES, please provide the following information:
D64: Name and Address | I64: Media Type | K64: Volume
B69: GS-0704 (REV 08/12) | K69: RDA SW05

Sheet Budget
A5: DEPARTMENT OF GENERAL SERVICES
A6: RECORDS MANAGEMENT DIVISION
A8: RECORDS HOLDING REPORT
A9: FY July 1, 2011 through June 30, 2012
A11: SEE INSTRUCTIONS ON BACK
B13: Department Name: | D13: Finance & Administration | I13: Allotment Code: | K13: 317.02
B15: Division Name: | D15: Budget | I15: County: | J15: Davidson
B17: Person Completing Form: | E17: Amie Guthormsen | I17: Phone: | J17: 615-741-4806
B19: Paper Record(s) Holdings
B20: I. Records on Hand July 1, 2011 | G20: (beginning volume from previous year) | K20: 164 | L20: Cu. Ft.
B22: II. Records Created | J22: (+) | K22: 8 | L22: Cu. Ft.
B24: III. Records Destroyed | J24: ( - ) | K24: 8 | L24: Cu. Ft.
B26: IV. Records Transferred:
D27: Records Center | J27: ( - ) | L27: Cu. Ft.
D28: Library & Archives | J28: ( - ) | L28: Cu. Ft.
D29: Other: (please specify) ______________________________ | J29: ( - ) | L29: Cu. Ft.
B31: V. Records on hand June 30, 2012 | H31: (Line I + II – III – IV = V) | K31: =SUM(K20+K22-K24-K27-K28-K29) -> 164 | L31: Cu. Ft.
B33: Records Category/Description:
B34: Media: | F34: Active | G34: + | H34: Inactive | J34: = | K34: Totals
B36: I. Paper | F36: =K31-H36 -> 164 | K36: =K31 -> 164 | L36: Cu. Ft
B38: II Cartridge & Magnetic Tapes | K38: =F38+H38 -> 0 | L38: Cart/Reel
B40: III. CD ROM | K40: =F40+H40 -> 0 | L40: Disks
B42: IV. Magnetic/Optical Disks | K42: =F42+H42 -> 0 | L42: Disks
B44: V. Microfilm | K44: =F44+H44 -> 0 | L44: Rolls
B46: VI. Microfiche | K46: =F46+H46 -> 0 | L46: Sheets
B48: Microfilm – Number of Rolls Produced Annually:
B50: I. | C50: By Reporting Agency
B52: II. | C52: By Other State Agencies
B54: III. | C54: By Outside Vendors
D56: Total Rolls Produced | K56: =K50+K52+K54 -> 0
B58: Storage Facilities
B59: Does your division store records in storage facilities other than the office or State Records Center?
J60: Yes | K60: X | L60: No
B61: If YES, please provide the following information:
D64: Name and Address | I64: Media Type | K64: Volume
B69: GS-0704 (REV 08/12) | K69: RDA SW05

Sheet Accounts
A5: DEPARTMENT OF GENERAL SERVICES
A6: RECORDS MANAGEMENT DIVISION
A8: RECORDS HOLDING REPORT
A9: FY July 1, 2011 through June 30, 2012
A11: SEE INSTRUCTIONS ON BACK
B13: Department Name: ______________________________________________ | D13: FINANCE AND ADMINISTRATION | I13: Allotment Code: | K13: 317.05
B15: Division Name: ______________________________________________ | D15: ACCOUNTS | I15: County: | J15: DAVIDSON
B17: Person Completing Form: ___________________________________ | E17: Juanita McCrary | I17: Phone: | J17: 741-2140
B19: Paper Record(s) Holdings
B20: I. Records on Hand July 1, 2011 | G20: (beginning volume from previous year) | K20: 3964 | L20: Cu. Ft.
B22: II. Records Created | J22: (+) | L22: Cu. Ft.
B24: III. Records Destroyed | J24: ( - ) | L24: Cu. Ft.
B26: IV. Records Transferred:
D27: Records Center | J27: ( - ) | L27: Cu. Ft.
D28: Library & Archives | J28: ( - ) | L28: Cu. Ft.
D29: Other: (please specify) ______________________________ | J29: ( - ) | L29: Cu. Ft.
B31: V. Records on hand June 30, 2012 | H31: (Line I + II – III – IV = V) | K31: =SUM(K20+K22-K24-K27-K28-K29) -> 3964 | L31: Cu. Ft.
B33: Records Category/Description:
B34: Media: | F34: Active | G34: + | H34: Inactive | J34: = | K34: Totals
B36: I. Paper | F36: =K31-H36 -> 3964 | K36: =K31 -> 3964 | L36: Cu. Ft
B38: II Cartridge & Magnetic Tapes | K38: =F38+H38 -> 0 | L38: Cart/Reel
B40: III. CD ROM | K40: =F40+H40 -> 0 | L40: Disks
B42: IV. Magnetic/Optical Disks | K42: =F42+H42 -> 0 | L42: Disks
B44: V. Microfilm | K44: =F44+H44 -> 0 | L44: Rolls
B46: VI. Microfiche | K46: =F46+H46 -> 0 | L46: Sheets
B48: Microfilm – Number of Rolls Produced Annually:
B50: I. | C50: By Reporting Agency
B52: II. | C52: By Other State Agencies
B54: III. | C54: By Outside Vendors
D56: Total Rolls Produced | K56: =K50+K52+K54 -> 0
B58: Storage Facilities
B59: Does your division store records in storage facilities other than the office or State Records Center?
J60: Yes | L60: No
B61: If YES, please provide the following information:
D64: Name and Address | I64: Media Type | K64: Volume
B69: GS-0704 (REV 08/12) | K69: RDA SW05

Sheet Admin
A5: DEPARTMENT OF GENERAL SERVICES
A6: RECORDS MANAGEMENT DIVISION
A8: RECORDS HOLDING REPORT
A9: FY July 1, 2011 through June 30, 2012
A11: SEE INSTRUCTIONS ON BACK
B13: Department Name: | D13: Finance & Administration | I13: Allotment Code: | K13: 317.01
B15: Division Name: | D15: Administration | I15: County: | J15: Davidson
B17: Person Completing Form: | E17: Linda Deason | I17: Phone: | J17: 6157415100
B19: Paper Record(s) Holdings
B20: I. Records on Hand July 1, 2011 | G20: (beginning volume from previous year) | K20: 3 | L20: Cu. Ft.
B22: II. Records Created | J22: (+) | L22: Cu. Ft.
B24: III. Records Destroyed | J24: ( - ) | L24: Cu. Ft.
B26: IV. Records Transferred:
D27: Records Center | J27: ( - ) | L27: Cu. Ft.
D28: Library & Archives | J28: ( - ) | L28: Cu. Ft.
D29: Other: (please specify) ______________________________ | J29: ( - ) | L29: Cu. Ft.
B31: V. Records on hand June 30, 2012 | H31: (Line I + II – III – IV = V) | K31: =SUM(K20+K22-K24-K27-K28-K29) -> 3 | L31: Cu. Ft.
B33: Records Category/Description:
B34: Media: | F34: Active | G34: + | H34: Inactive | J34: = | K34: Totals
B36: I. Paper | F36: =K31-H36 -> 3 | K36: =K31 -> 3 | L36: Cu. Ft
B38: II Cartridge & Magnetic Tapes | K38: =F38+H38 -> 0 | L38: Cart/Reel
B40: III. CD ROM | K40: =F40+H40 -> 0 | L40: Disks
B42: IV. Magnetic/Optical Disks | K42: =F42+H42 -> 0 | L42: Disks
B44: V. Microfilm | K44: =F44+H44 -> 0 | L44: Rolls
B46: VI. Microfiche | K46: =F46+H46 -> 0 | L46: Sheets
B48: Microfilm – Number of Rolls Produced Annually:
B50: I. | C50: By Reporting Agency
B52: II. | C52: By Other State Agencies
B54: III. | C54: By Outside Vendors
D56: Total Rolls Produced | K56: =K50+K52+K54 -> 0
B58: Storage Facilities
B59: Does your division store records in storage facilities other than the office or State Records Center?
J60: Yes | L60: No
B61: If YES, please provide the following information:
D64: Name and Address | I64: Media Type | K64: Volume
B69: GS-0704 (REV 08/12) | K69: RDA SW05

Sheet OBF
A5: DEPARTMENT OF GENERAL SERVICES
A6: RECORDS MANAGEMENT DIVISION
A8: RECORDS HOLDING REPORT
A9: FY July 1, 2011 through June 30, 2012
A11: SEE INSTRUCTIONS ON BACK
B13: Department Name: | D13: Finance & Administration | I13: Allotment Code: | K13: 317.01
B15: Division Name: | D15: Office of Business and Finance | I15: County: | J15: Davidson
B17: Person Completing Form: | E17: Tami Jefferson | I17: Phone: | J17: 6152534052
B19: Paper Record(s) Holdings
B20: I. Records on Hand July 1, 2011 | G20: (beginning volume from previous year) | K20: 311 | L20: Cu. Ft.
B22: II. Records Created | J22: (+) | K22: 10 | L22: Cu. Ft.
B24: III. Records Destroyed | J24: ( - ) | K24: 10 | L24: Cu. Ft.
B26: IV. Records Transferred:
D27: Records Center | J27: ( - ) | L27: Cu. Ft.
D28: Library & Archives | J28: ( - ) | L28: Cu. Ft.
D29: Other: (please specify) ______________________________ | J29: ( - ) | L29: Cu. Ft.
B31: V. Records on hand June 30, 2012 | H31: (Line I + II – III – IV = V) | K31: =SUM(K20+K22-K24-K27-K28-K29) -> 311 | L31: Cu. Ft.
B33: Records Category/Description:
B34: Media: | F34: Active | G34: + | H34: Inactive | J34: = | K34: Totals
B36: I. Paper | F36: =K31-H36 -> 311 | K36: =K31 -> 311 | L36: Cu. Ft
B38: II Cartridge & Magnetic Tapes | K38: =F38+H38 -> 0 | L38: Cart/Reel
B40: III. CD ROM | K40: =F40+H40 -> 0 | L40: Disks
B42: IV. Magnetic/Optical Disks | K42: =F42+H42 -> 0 | L42: Disks
B44: V. Microfilm | K44: =F44+H44 -> 0 | L44: Rolls
B46: VI. Microfiche | K46: =F46+H46 -> 0 | L46: Sheets
B48: Microfilm – Number of Rolls Produced Annually:
B50: I. | C50: By Reporting Agency
B52: II. | C52: By Other State Agencies
B54: III. | C54: By Outside Vendors
D56: Total Rolls Produced | K56: =K50+K52+K54 -> 0
B58: Storage Facilities
B59: Does your division store records in storage facilities other than the office or State Records Center?
J60: Yes | K60: X | L60: No
B61: If YES, please provide the following information:
D64: Name and Address | I64: Media Type | K64: Volume
B69: GS-0704 (REV 08/12) | K69: RDA SW05

Sheet FABS
A5: DEPARTMENT OF GENERAL SERVICES
A6: RECORDS MANAGEMENT DIVISION
A8: RECORDS HOLDING REPORT
A9: FY July 1, 2011 through June 30, 2012
A11: SEE INSTRUCTIONS ON BACK
B13: Department Name: | D13: Finance & Administration | I13: Allotment Code: | K13: 317.01
B15: Division Name: | D15: Billing Services | I15: County: | J15: Davidson
B17: Person Completing Form: | E17: Lori Hedge | I17: Phone: | J17: 6157410876
B19: Paper Record(s) Holdings
B20: I. Records on Hand July 1, 2011 | G20: (beginning volume from previous year) | K20: 56 | L20: Cu. Ft.
B22: II. Records Created | J22: (+) | K22: 12 | L22: Cu. Ft.
B24: III. Records Destroyed | J24: ( - ) | K24: 44 | L24: Cu. Ft.
B26: IV. Records Transferred:
D27: Records Center | J27: ( - ) | L27: Cu. Ft.
D28: Library & Archives | J28: ( - ) | L28: Cu. Ft.
D29: Other: (please specify) ______________________________ | J29: ( - ) | L29: Cu. Ft.
B31: V. Records on hand June 30, 2012 | H31: (Line I + II – III – IV = V) | K31: =SUM(K20+K22-K24-K27-K28-K29) -> 24 | L31: Cu. Ft.
B33: Records Category/Description:
B34: Media: | F34: Active | G34: + | H34: Inactive | J34: = | K34: Totals
B36: I. Paper | F36: =K31-H36 -> 24 | K36: =K31 -> 24 | L36: Cu. Ft
B38: II Cartridge & Magnetic Tapes | K38: =F38+H38 -> 0 | L38: Cart/Reel
B40: III. CD ROM | F40: 264 | K40: =F40+H40 -> 264 | L40: Disks
B42: IV. Magnetic/Optical Disks | K42: =F42+H42 -> 0 | L42: Disks
B44: V. Microfilm | K44: =F44+H44 -> 0 | L44: Rolls
B46: VI. Microfiche | K46: =F46+H46 -> 0 | L46: Sheets
B48: Microfilm – Number of Rolls Produced Annually:
B50: I. | C50: By Reporting Agency
B52: II. | C52: By Other State Agencies
B54: III. | C54: By Outside Vendors
D56: Total Rolls Produced | K56: =K50+K52+K54 -> 0
B58: Storage Facilities
B59: Does your division store records in storage facilities other than the office or State Records Center?
J60: Yes | K60: X | L60: No
B61: If YES, please provide the following information:
D64: Name and Address | I64: Media Type | K64: Volume
B69: GS-0704 (REV 08/12) | K69: RDA SW05

Sheet ITM
A5: DEPARTMENT OF GENERAL SERVICES
A6: RECORDS MANAGEMENT DIVISION
A8: RECORDS HOLDING REPORT
A9: FY July 1, 2011 through June 30, 2012
A11: SEE INSTRUCTIONS ON BACK
B13: Department Name: ______________________________________________ | D13: Finance & Administration | I13: Allotment Code: | K13: 317.01
B15: Division Name: ______________________________________________ | D15: Administration -ITM | I15: County: | J15: Davidson
B17: Person Completing Form: ___________________________________ | E17: Jeanne Smith | I17: Phone: | J17: 6155323486
B19: Paper Record(s) Holdings
B20: I. Records on Hand July 1, 2011 | G20: (beginning volume from previous year) | K20: 45 | L20: Cu. Ft.
B22: II. Records Created | J22: (+) | K22: 2 | L22: Cu. Ft.
B24: III. Records Destroyed | J24: ( - ) | K24: 4 | L24: Cu. Ft.
B26: IV. Records Transferred:
D27: Records Center | J27: ( - ) | L27: Cu. Ft.
D28: Library & Archives | J28: ( - ) | L28: Cu. Ft.
D29: Other: (please specify) ______________________________ | J29: ( - ) | L29: Cu. Ft.
B31: V. Records on hand June 30, 2012 | H31: (Line I + II – III – IV = V) | K31: =SUM(K20+K22-K24-K27-K28-K29) -> 43 | L31: Cu. Ft.
B33: Records Category/Description:
B34: Media: | F34: Active | G34: + | H34: Inactive | J34: = | K34: Totals
B36: I. Paper | F36: =K31-H36 -> 43 | K36: =K31 -> 43 | L36: Cu. Ft
B38: II Cartridge & Magnetic Tapes | K38: =F38+H38 -> 0 | L38: Cart/Reel
B40: III. CD ROM | K40: =F40+H40 -> 0 | L40: Disks
B42: IV. Magnetic/Optical Disks | K42: =F42+H42 -> 0 | L42: Disks
B44: V. Microfilm | K44: =F44+H44 -> 0 | L44: Rolls
B46: VI. Microfiche | K46: =F46+H46 -> 0 | L46: Sheets
B48: Microfilm – Number of Rolls Produced Annually:
B50: I. | C50: By Reporting Agency
B52: II. | C52: By Other State Agencies
B54: III. | C54: By Outside Vendors
D56: Total Rolls Produced | K56: =K50+K52+K54 -> 0
B58: Storage Facilities
B59: Does your division store records in storage facilities other than the office or State Records Center?
J60: Yes | K60: X | L60: No
B61: If YES, please provide the following information:
D64: Name and Address | I64: Media Type | K64: Volume
B69: GS-0704 (REV 08/12) | K69: RDA SW05

Sheet HRO
A5: DEPARTMENT OF GENERAL SERVICES
A6: RECORDS MANAGEMENT DIVISION
A8: RECORDS HOLDING REPORT
A9: FY July 1, 2011 through June 30, 2012
A11: SEE INSTRUCTIONS ON BACK
B13: Department Name: | D13: Finance & Administration | I13: Allotment Code: | K13: 317.01
B15: Division Name: | D15: Human Resource Office | I15: County: | J15: Davidson
B17: Person Completing Form: | E17: Beverly Stewart | I17: Phone: | J17: 6157417596
B19: Paper Record(s) Holdings
B20: I. Records on Hand July 1, 2011 | G20: (beginning volume from previous year) | K20: 411 | L20: Cu. Ft.
B22: II. Records Created | J22: (+) | L22: Cu. Ft.
B24: III. Records Destroyed | J24: ( - ) | L24: Cu. Ft.
B26: IV. Records Transferred:
D27: Records Center | J27: ( - ) | L27: Cu. Ft.
D28: Library & Archives | J28: ( - ) | L28: Cu. Ft.
D29: Other: (please specify) ______________________________ | J29: ( - ) | L29: Cu. Ft.
B31: V. Records on hand June 30, 2012 | H31: (Line I + II – III – IV = V) | K31: =SUM(K20+K22-K24-K27-K28-K29) -> 411 | L31: Cu. Ft.
B33: Records Category/Description:
B34: Media: | F34: Active | G34: + | H34: Inactive | J34: = | K34: Totals
B36: I. Paper | F36: =K31-H36 -> 411 | K36: =K31 -> 411 | L36: Cu. Ft
B38: II Cartridge & Magnetic Tapes | K38: =F38+H38 -> 0 | L38: Cart/Reel
B40: III. CD ROM | K40: =F40+H40 -> 0 | L40: Disks
B42: IV. Magnetic/Optical Disks | K42: =F42+H42 -> 0 | L42: Disks
B44: V. Microfilm | K44: =F44+H44 -> 0 | L44: Rolls
B46: VI. Microfiche | K46: =F46+H46 -> 0 | L46: Sheets
B48: Microfilm – Number of Rolls Produced Annually:
B50: I. | C50: By Reporting Agency
B52: II. | C52: By Other State Agencies
B54: III. | C54: By Outside Vendors
D56: Total Rolls Produced | K56: =K50+K52+K54 -> 0
B58: Storage Facilities
B59: Does your division store records in storage facilities other than the office or State Records Center?
J60: Yes | K60: X | L60: No
B61: If YES, please provide the following information:
D64: Name and Address | I64: Media Type | K64: Volume
B69: GS-0704 (REV 08/12) | K69: RDA SW05

Sheet Audit
A5: DEPARTMENT OF GENERAL SERVICES
A6: RECORDS MANAGEMENT DIVISION
A8: RECORDS HOLDING REPORT
A9: FY July 1, 2011 through June 30, 2012
A11: SEE INSTRUCTIONS ON BACK
B13: Department Name: | D13: Finance & Administration | I13: Allotment Code: | K13: 317.01
B15: Division Name: | D15: Internal Audit / under RDS | I15: County: | J15: Davidson
B17: Person Completing Form: | E17: Please combine with RDS | I17: Phone: | J17: 6157416018
B19: Paper Record(s) Holdings
B20: I. Records on Hand July 1, 2011 | G20: (beginning volume from previous year) | K20: 22 | L20: Cu. Ft.
B22: II. Records Created | J22: (+) | L22: Cu. Ft.
B24: III. Records Destroyed | J24: ( - ) | L24: Cu. Ft.
B26: IV. Records Transferred:
D27: Records Center | J27: ( - ) | L27: Cu. Ft.
D28: Library & Archives | J28: ( - ) | L28: Cu. Ft.
D29: Other: (please specify) ______________________________ | J29: ( - ) | L29: Cu. Ft.
B31: V. Records on hand June 30, 2012 | H31: (Line I + II – III – IV = V) | K31: =SUM(K20+K22-K24-K27-K28-K29) -> 22 | L31: Cu. Ft.
B33: Records Category/Description:
B34: Media: | F34: Active | G34: + | H34: Inactive | J34: = | K34: Totals
B36: I. Paper | F36: =K31-H36 -> 22 | K36: =K31 -> 22 | L36: Cu. Ft
B38: II Cartridge & Magnetic Tapes | K38: =F38+H38 -> 0 | L38: Cart/Reel
B40: III. CD ROM | K40: =F40+H40 -> 0 | L40: Disks
B42: IV. Magnetic/Optical Disks | K42: =F42+H42 -> 0 | L42: Disks
B44: V. Microfilm | K44: =F44+H44 -> 0 | L44: Rolls
B46: VI. Microfiche | K46: =F46+H46 -> 0 | L46: Sheets
B48: Microfilm – Number of Rolls Produced Annually:
B50: I. | C50: By Reporting Agency
B52: II. | C52: By Other State Agencies
B54: III. | C54: By Outside Vendors
D56: Total Rolls Produced | K56: =K50+K52+K54 -> 0
B58: Storage Facilities
B59: Does your division store records in storage facilities other than the office or State Records Center?
J60: Yes | L60: No
B61: If YES, please provide the following information:
D64: Name and Address | I64: Media Type | K64: Volume
B69: GS-0704 (REV 08/12) | K69: RDA SW05

Sheet OIG
A5: DEPARTMENT OF GENERAL SERVICES
A6: RECORDS MANAGEMENT DIVISION
A8: RECORDS HOLDING REPORT
A9: FY July 1, 2011 through June 30, 2012
A11: SEE INSTRUCTIONS ON BACK
B13: Department Name: | D13: Finance & Administration | I13: Allotment Code: | K13: 317.12
B15: Division Name: | D15: Office of Inspector General | I15: County: | J15: Davidson
B17: Person Completing Form: | E17: Georganne Martin | I17: Phone: | J17: 615 687-7200
B19: Paper Record(s) Holdings
B20: I. Records on Hand July 1, 2011 | G20: (beginning volume from previous year) | K20: 626 | L20: Cu. Ft.
B22: II. Records Created | J22: (+) | K22: 396 | L22: Cu. Ft.
B24: III. Records Destroyed | J24: ( - ) | K24: 602 | L24: Cu. Ft.
B26: IV. Records Transferred:
D27: Records Center | J27: ( - ) | L27: Cu. Ft.
D28: Library & Archives | J28: ( - ) | L28: Cu. Ft.
D29: Other: (please specify) ______________________________ | J29: ( - ) | L29: Cu. Ft.
B31: V. Records on hand June 30, 2012 | H31: (Line I + II – III – IV = V) | K31: =SUM(K20+K22-K24-K27-K28-K29) -> 420 | L31: Cu. Ft.
B33: Records Category/Description:
B34: Media: | F34: Active | G34: + | H34: Inactive | J34: = | K34: Totals
B36: I. Paper | F36: =K31-H36 -> 420 | K36: =K31 -> 420 | L36: Cu. Ft
B38: II Cartridge & Magnetic Tapes | K38: =F38+H38 -> 0 | L38: Cart/Reel
B40: III. CD ROM | K40: =F40+H40 -> 0 | L40: Disks
B42: IV. Magnetic/Optical Disks | K42: =F42+H42 -> 0 | L42: Disks
B44: V. Microfilm | K44: =F44+H44 -> 0 | L44: Rolls
B46: VI. Microfiche | K46: =F46+H46 -> 0 | L46: Sheets
B48: Microfilm – Number of Rolls Produced Annually:
B50: I. | C50: By Reporting Agency
B52: II. | C52: By Other State Agencies
B54: III. | C54: By Outside Vendors
D56: Total Rolls Produced | K56: =K50+K52+K54 -> 0
B58: Storage Facilities
B59: Does your division store records in storage facilities other than the office or State Records Center?
J60: Yes | K60: X | L60: No
B61: If YES, please provide the following information:
D64: Name and Address | I64: Media Type | K64: Volume
B69: GS-0704 (REV 08/12) | K69: RDA SW05

Sheet Shared Services
A5: DEPARTMENT OF GENERAL SERVICES
A6: RECORDS MANAGEMENT DIVISION
A8: RECORDS HOLDING REPORT
A9: FY July 1, 2011 through June 30, 2012
A11: SEE INSTRUCTIONS ON BACK
B13: Department Name: | D13: Finance & Administration | I13: Allotment Code: | K13: 317.18
B15: Division Name: | D15: Shared Services | I15: County: | J15: Davidson
B17: Person Completing Form: | E17: Renee Martin | I17: Phone: | J17: 615-253-8992
B19: Paper Record(s) Holdings
B20: I. Records on Hand July 1, 2011 | G20: (beginning volume from previous year) | K20: 100 | L20: Cu. Ft.
B22: II. Records Created | J22: (+) | L22: Cu. Ft.
B24: III. Records Destroyed | J24: ( - ) | K24: 35 | L24: Cu. Ft.
B26: IV. Records Transferred:
D27: Records Center | J27: ( - ) | L27: Cu. Ft.
D28: Library & Archives | J28: ( - ) | L28: Cu. Ft.
D29: Other: (please specify) ______________________________ | J29: ( - ) | L29: Cu. Ft.
B31: V. Records on hand June 30, 2012 | H31: (Line I + II – III – IV = V) | K31: =SUM(K20+K22-K24-K27-K28-K29) -> 65 | L31: Cu. Ft.
B33: Records Category/Description:
B34: Media: | F34: Active | G34: + | H34: Inactive | J34: = | K34: Totals
B36: I. Paper | F36: =K31 -> 65 | K36: =K31 -> 65 | L36: Cu. Ft
B38: II Cartridge & Magnetic Tapes | K38: =F38+H38 -> 0 | L38: Cart/Reel
B40: III. CD ROM | K40: =F40+H40 -> 0 | L40: Disks
B42: IV. Magnetic/Optical Disks | K42: =F42+H42 -> 0 | L42: Disks
B44: V. Microfilm | K44: =F44+H44 -> 0 | L44: Rolls
B46: VI. Microfiche | K46: =F46+H46 -> 0 | L46: Sheets
B48: Microfilm – Number of Rolls Produced Annually:
B50: I. | C50: By Reporting Agency
B52: II. | C52: By Other State Agencies
B54: III. | C54: By Outside Vendors
D56: Total Rolls Produced | K56: =K50+K52+K54 -> 0
B58: Storage Facilities
B59: Does your division store records in storage facilities other than the office or State Records Center?
J60: Yes | K60: X | L60: No
B61: If YES, please provide the following information:
D64: Name and Address | I64: Media Type | K64: Volume
B69: GS-0704 (REV 08/12) | K69: RDA SW05

Sheet OIR PMC
A5: DEPARTMENT OF GENERAL SERVICES
A6: RECORDS MANAGEMENT DIVISION
A8: RECORDS HOLDING REPORT
A9: FY July 1, 2011 through June 30, 2012
A11: SEE INSTRUCTIONS ON BACK
B13: Department Name: | D13: Finance & Administration | I13: Allotment Code: | K13: 31723
B15: Division Name: | D15: OIR PMC | I15: County: | J15: Davidson
B17: Person Completing Form: | E17: Margaret Latch | I17: Phone: | J17: 615-741-6891
B19: Paper Record(s) Holdings
B20: I. Records on Hand July 1, 2011 | G20: (beginning volume from previous year) | K20: 377 | L20: Cu. Ft.
B22: II. Records Created | J22: (+) | L22: Cu. Ft.
B24: III. Records Destroyed | J24: ( - ) | L24: Cu. Ft.
B26: IV. Records Transferred:
D27: Records Center | J27: ( - ) | L27: Cu. Ft.
D28: Library & Archives | J28: ( - ) | L28: Cu. Ft.
D29: Other: (please specify) ______________________________ | J29: ( - ) | L29: Cu. Ft.
B31: V. Records on hand June 30, 2012 | H31: (Line I + II – III – IV = V) | K31: =SUM(K20+K22-K24-K27-K28-K29) -> 377 | L31: Cu. Ft.
B33: Records Category/Description:
B34: Media: | F34: Active | G34: + | H34: Inactive | J34: = | K34: Totals
B36: I. Paper | F36: =K31 -> 377 | K36: =K31 -> 377 | L36: Cu. Ft
B38: II Cartridge & Magnetic Tapes | K38: =F38+H38 -> 0 | L38: Cart/Reel
B40: III. CD ROM | K40: =F40+H40 -> 0 | L40: Disks
B42: IV. Magnetic/Optical Disks | K42: =F42+H42 -> 0 | L42: Disks
B44: V. Microfilm | K44: =F44+H44 -> 0 | L44: Rolls
B46: VI. Microfiche | K46: =F46+H46 -> 0 | L46: Sheets
B48: Microfilm – Number of Rolls Produced Annually:
B50: I. | C50: By Reporting Agency
B52: II. | C52: By Other State Agencies
B54: III. | C54: By Outside Vendors
D56: Total Rolls Produced | K56: =K50+K52+K54 -> 0
B58: Storage Facilities
B59: Does your division store records in storage facilities other than the office or State Records Center?
J60: Yes | L60: No
B61: If YES, please provide the following information:
D64: Name and Address | I64: Media Type | K64: Volume
B69: GS-0704 (REV 08/12) | K69: RDA SW05

Sheet ERP
A5: DEPARTMENT OF GENERAL SERVICES
A6: RECORDS MANAGEMENT DIVISION
A8: RECORDS HOLDING REPORT
A9: FY July 1, 2011 through June 30, 2012
A11: SEE INSTRUCTIONS ON BACK
B13: Department Name: | D13: Finance & Administration | I13: Allotment Code: | K13: 317.17
B15: Division Name: | D15: Enterprise Resource Planning | I15: County: | J15: Davidson
B17: Person Completing Form: | E17: Dianne L.Cavanah | I17: Phone: | J17: 615 253-1020
B19: Paper Record(s) Holdings
B20: I. Records on Hand July 1, 2011 | G20: (beginning volume from previous year) | K20: 192 | L20: Cu. Ft.
B22: II. Records Created | J22: (+) | L22: Cu. Ft.
B24: III. Records Destroyed | J24: ( - ) | L24: Cu. Ft.
B26: IV. Records Transferred:
D27: Records Center | J27: ( - ) | L27: Cu. Ft.
D28: Library & Archives | J28: ( - ) | L28: Cu. Ft.
D29: Other: (please specify) ______________________________ | J29: ( - ) | L29: Cu. Ft.
B31: V. Records on hand June 30, 2012 | H31: (Line I + II – III – IV = V) | K31: =SUM(K20+K22-K24-K27-K28-K29) -> 192 | L31: Cu. Ft.
B33: Records Category/Description:
B34: Media: | F34: Active | G34: + | H34: Inactive | J34: = | K34: Totals
B36: I. Paper | F36: =K31-H36 -> 192 | K36: =K31 -> 192 | L36: Cu. Ft
B38: II Cartridge & Magnetic Tapes | K38: =F38+H38 -> 0 | L38: Cart/Reel
B40: III. CD ROM | K40: =F40+H40 -> 0 | L40: Disks
B42: IV. Magnetic/Optical Disks | K42: =F42+H42 -> 0 | L42: Disks
B44: V. Microfilm | K44: =F44+H44 -> 0 | L44: Rolls
B46: VI. Microfiche | K46: =F46+H46 -> 0 | L46: Sheets
B48: Microfilm – Number of Rolls Produced Annually:
B50: I. | C50: By Reporting Agency
B52: II. | C52: By Other State Agencies
B54: III. | C54: By Outside Vendors
D56: Total Rolls Produced | K56: =K50+K52+K54 -> 0
B58: Storage Facilities
B59: Does your division store records in storage facilities other than the office or State Records Center?
J60: Yes | L60: No
B61: If YES, please provide the following information:
D64: Name and Address | I64: Media Type | K64: Volume
B69: GS-0704 (REV 08/12) | K69: RDA SW05
